{"text_format":"3","workbook":"xlsx","n_sheets":3,"sheets":["Tanulók listája","Osztálynévsor","Tanulói adatok"],"not_rendered":{"images":2,"defined_names":8},"read":"whole","date_system":"1900"}

{"sheet":"Tanulók listája","index":0,"n_rows":8,"n_cols":13,"rows_kept":8,"merged":[[1,2,2,3],[1,4,1,11],[2,4,2,11],[6,12,8,16]]}
[]
[null,null,"Tanulók listája",null,"UGRÁS AZ OSZTÁLYNÉVSOR LAPRA"]
[{"$nulls":4},"UGRÁS A TANULÓI ADATOK LAPRA"]
[null,null,"TANULÓ NEVE","E-MAIL-CÍM","OTTHONI TELEFON","MOBILTELEFON","SZÜLETÉSI DÁTUM","VÉSZHELYZETBEN ÉRTESÍTENDŐ","VÉSZTELEFONSZÁM","ORVOS NEVE","ORVOS TELEFONSZÁMA","  "]
[null,null,"1. név","E-mail-cím","Otthoni telefonszám","Mobiltelefon","Dátum","Kapcsolattartó 1","Vésztelefonszám","Orvos 1","Orvos telefonszáma"]
[null,null,"2. név","E-mail-cím","Otthoni telefonszám","Mobiltelefon","Dátum","Kapcsolattartó 2","Vésztelefonszám","Orvos 2","Orvos telefonszáma"]
[null,null,"3. név","E-mail-cím","Otthoni telefonszám","Mobiltelefon","Dátum","Kapcsolattartó 3","Vésztelefonszám","Orvos 3","Orvos telefonszáma",null,"Tipp: Ha újabb tanulókat szeretne hozzáadni, a táblázat utolsó cellájában nyomja le a Tab billentyűt."]
[null,null,"4. név","E-mail-cím","Otthoni telefonszám","Mobiltelefon","Dátum","Kapcsolattartó 4","Vésztelefonszám","Orvos 4","Orvos telefonszáma"]

{"sheet":"Osztálynévsor","index":1,"n_rows":12,"n_cols":7,"rows_kept":12,"merged":[[1,2,2,2],[1,3,2,3],[1,4,1,6],[2,4,2,6]]}
[]
[null,null,"Osztálynévsor","Graphic Design Institute","UGRÁS A TANULÓK LISTÁJA LAPRA"]
[{"$nulls":4},"UGRÁS A TANULÓI ADATOK LAPRA"]
[null,null,"TANTÁRGY","Tantárgy neve","KEZDÉSI DÁTUM","Dátum"]
[null,null,"OKTATÓ","Oktató 1","BEFEJEZŐ DÁTUM","Dátum"]
[null,null,"REGISZTRÁLT TANULÓK",{"$f":"COUNTA(TanulóiNévsor[TANULÓ NEVE])","v":4}]
[]
[null,null,"TANULÓ NEVE","E-MAIL-CÍM","OTTHONI TELEFON","MOBILTELEFON","  "]
[null,null,"1. név",{"$f":"IFERROR(VLOOKUP(TanulóiNévsor[[#This Row],[TANULÓ NEVE]],Tanulók[],2),\"\")","v":"E-mail-cím"},{"$f":"IFERROR(VLOOKUP(TanulóiNévsor[[#This Row],[TANULÓ NEVE]],Tanulók[],3),\"\")","v":"Otthoni telefonszám"},{"$f":"IFERROR(VLOOKUP(TanulóiNévsor[[#This Row],[TANULÓ NEVE]],Tanulók[],4),\"\")","v":"Mobiltelefon"}]
[null,null,"2. név",{"$f":"IFERROR(VLOOKUP(TanulóiNévsor[[#This Row],[TANULÓ NEVE]],Tanulók[],2),\"\")","v":"E-mail-cím"},{"$f":"IFERROR(VLOOKUP(TanulóiNévsor[[#This Row],[TANULÓ NEVE]],Tanulók[],3),\"\")","v":"Otthoni telefonszám"},{"$f":"IFERROR(VLOOKUP(TanulóiNévsor[[#This Row],[TANULÓ NEVE]],Tanulók[],4),\"\")","v":"Mobiltelefon"}]
[null,null,"3. név",{"$f":"IFERROR(VLOOKUP(TanulóiNévsor[[#This Row],[TANULÓ NEVE]],Tanulók[],2),\"\")","v":"E-mail-cím"},{"$f":"IFERROR(VLOOKUP(TanulóiNévsor[[#This Row],[TANULÓ NEVE]],Tanulók[],3),\"\")","v":"Otthoni telefonszám"},{"$f":"IFERROR(VLOOKUP(TanulóiNévsor[[#This Row],[TANULÓ NEVE]],Tanulók[],4),\"\")","v":"Mobiltelefon"}]
[null,null,"4. név",{"$f":"IFERROR(VLOOKUP(TanulóiNévsor[[#This Row],[TANULÓ NEVE]],Tanulók[],2),\"\")","v":"E-mail-cím"},{"$f":"IFERROR(VLOOKUP(TanulóiNévsor[[#This Row],[TANULÓ NEVE]],Tanulók[],3),\"\")","v":"Otthoni telefonszám"},{"$f":"IFERROR(VLOOKUP(TanulóiNévsor[[#This Row],[TANULÓ NEVE]],Tanulók[],4),\"\")","v":"Mobiltelefon"}]

{"sheet":"Tanulói adatok","index":2,"n_rows":13,"n_cols":4,"rows_kept":13,"merged":[[1,2,2,2],[1,3,1,4],[2,3,2,4],[3,2,3,3]]}
[]
[null,null,"Tanulói adatok","UGRÁS A TANULÓK LISTÁJA LAPRA"]
[{"$nulls":3},"UGRÁS AZ OSZTÁLYNÉVSOR LAPRA"]
[null,null,"TIPP: VÁLASSZON KI EGY TANULÓT A D5 CELLA LEGÖRDÜLŐ MENÜJÉBŐL AZ ADATAI FRISSÍTÉSÉHEZ"]
[null,null,"TANULÓ NEVE","1. név"]
[null,null,"E-MAIL-CÍM",{"$f":"IFERROR(VLOOKUP(TanulóNeve,Tanulók[],2,FALSE),\"\")","v":"E-mail-cím"}]
[null,null,"OTTHONI TELEFON",{"$f":"IFERROR(VLOOKUP(TanulóNeve,Tanulók[],3,FALSE),\"\")","v":"Otthoni telefonszám"}]
[null,null,"MOBILTELEFON",{"$f":"IFERROR(VLOOKUP(TanulóNeve,Tanulók[],4,FALSE),\"\")","v":"Mobiltelefon"}]
[null,null,"SZÜLETÉSI DÁTUM",{"$f":"IFERROR(VLOOKUP(TanulóNeve,Tanulók[],5,FALSE),\"\")","v":"Dátum"}]
[null,null,"VÉSZHELYZETBEN ÉRTESÍTENDŐ",{"$f":"IFERROR(VLOOKUP(TanulóNeve,Tanulók[],6,FALSE),\"\")","v":"Kapcsolattartó 1"}]
[null,null,"VÉSZTELEFONSZÁM",{"$f":"IFERROR(VLOOKUP(TanulóNeve,Tanulók[],7,FALSE),\"\")","v":"Vésztelefonszám"}]
[null,null,"ORVOS NEVE",{"$f":"IFERROR(VLOOKUP(TanulóNeve,Tanulók[],8,FALSE),\"\")","v":"Orvos 1"}]
[null,null,"ORVOS TELEFONSZÁMA",{"$f":"IFERROR(VLOOKUP(TanulóNeve,Tanulók[],9,FALSE),\"\")","v":"Orvos telefonszáma"}]